[Event "Titled Tuesday Blitz May 9 Late 2023"]
[White "Kiseljova, Marya"]
[Black "Hollan, Petr"]
[WhiteFideId "4155009"]
[BlackFideId "360945"]
[WhiteElo "1831"]
[BlackElo "2254"]
[Result "0-1"]
[Round "08"]
[TimeControl "180+2"]
[Date "2023.05.09"]
[WhiteClock "0:00:17"]
[BlackClock "0:00:37"]

1. d4 {[%clk 0:02:55]}  Nf6 {[%clk 0:02:47]} 2. c4 {[%clk 0:02:55]}  e6 {[%clk 0:02:47]} 3. Bf4 {[%clk 0:02:54]}  b6 {[%clk 0:02:45]} 4. a3 {[%clk 0:02:52]}  Bb7 {[%clk 0:02:45]} 5. Nf3 {[%clk 0:02:52]}  h6 {[%clk 0:02:45]} 6. e3 {[%clk 0:02:51]}  a5 {[%clk 0:02:46]} 7. Nc3 {[%clk 0:02:51]}  d6 {[%clk 0:02:47]} 8. Be2 {[%clk 0:02:49]}  Nbd7 {[%clk 0:02:47]} 9. O-O {[%clk 0:02:49]}  g6 {[%clk 0:02:46]} 10. h3 {[%clk 0:02:48]}  Bg7 {[%clk 0:02:47]} 11. b4 {[%clk 0:02:44]}  O-O {[%clk 0:02:46]} 12. Qc2 {[%clk 0:02:34]}  g5 {[%clk 0:02:41]} 13. Bh2 {[%clk 0:02:30]}  Re8 {[%clk 0:02:40]} 14. e4 {[%clk 0:02:22]}  axb4 {[%clk 0:02:36]} 15. axb4 {[%clk 0:02:22]}  e5 {[%clk 0:02:34]} 16. d5 {[%clk 0:02:18]}  Nh5 {[%clk 0:02:30]} 17. Nxe5 {[%clk 0:02:06]}  Rxa1 {[%clk 0:02:28]} 18. Rxa1 {[%clk 0:02:05]}  Nxe5 {[%clk 0:02:27]} 19. Bxh5 {[%clk 0:02:05]}  Qf6 {[%clk 0:02:27]} 20. Bxe5 {[%clk 0:01:43]}  Qxe5 {[%clk 0:02:27]} 21. Ra3 {[%clk 0:01:39]}  Ra8 {[%clk 0:02:22]} 22. Rxa8+ {[%clk 0:01:31]}  Bxa8 {[%clk 0:02:23]} 23. Qa2 {[%clk 0:01:19]}  Bb7 {[%clk 0:02:10]} 24. Nb5 {[%clk 0:01:20]}  Qxe4 {[%clk 0:02:07]} 25. Nxc7 {[%clk 0:01:17]}  Be5 {[%clk 0:01:57]} 26. g3 {[%clk 0:01:05]}  Kg7 {[%clk 0:01:41]} 27. Qa7 {[%clk 0:00:34]}  Bd4 {[%clk 0:01:17]} 28. Qa2 {[%clk 0:00:20]}  Qe1+ {[%clk 0:01:09]} 29. Kg2 {[%clk 0:00:20]}  Qxb4 {[%clk 0:01:08]} 30. Nb5 {[%clk 0:00:19]}  Bxd5+ {[%clk 0:01:04]} 31. cxd5 {[%clk 0:00:16]}  Qxb5 {[%clk 0:01:04]} 32. Bf3 {[%clk 0:00:13]}  Qc5 {[%clk 0:01:03]} 33. Qe2 {[%clk 0:00:10]}  Be5 {[%clk 0:01:03]} 34. Qe4 {[%clk 0:00:09]}  b5 {[%clk 0:01:00]} 35. Be2 {[%clk 0:00:09]}  b4 {[%clk 0:01:00]} 36. Bd3 {[%clk 0:00:09]}  Kf8 {[%clk 0:00:58]} 37. h4 {[%clk 0:00:06]}  b3 {[%clk 0:00:56]} 38. Bb1 {[%clk 0:00:05]}  gxh4 {[%clk 0:00:51]} 39. gxh4 {[%clk 0:00:05]}  Qc1 {[%clk 0:00:50]} 40. Kf3 {[%clk 0:00:05]}  b2 {[%clk 0:00:49]} 41. Kg4 {[%clk 0:00:04]}  Qg1+ {[%clk 0:00:47]} 42. Kf3 {[%clk 0:00:04]}  Qh1+ {[%clk 0:00:45]} 43. Ke2 {[%clk 0:00:03]}  Qc1 {[%clk 0:00:45]} 44. Kf3 {[%clk 0:00:03]}  Ke7 {[%clk 0:00:44]} 45. Ke2 {[%clk 0:00:03]}  h5 {[%clk 0:00:42]} 46. Kf3 {[%clk 0:00:03]}  f5 {[%clk 0:00:38]} 47. Qxf5 {[%clk 0:00:03]}  Qh1+ {[%clk 0:00:38]} 48. Ke2 {[%clk 0:00:03]}  Qxd5 {[%clk 0:00:37]} 49. Qh7+ {[%clk 0:00:03]}  Kd8 {[%clk 0:00:37]} 50. Qc2 {[%clk 0:00:02]}  Bf6 {[%clk 0:00:30]} 51. Qd3 {[%clk 0:00:02]}  Qe5+ {[%clk 0:00:29]} 52. Qe4 {[%clk 0:00:02]}  Qxe4+ {[%clk 0:00:27]} 53. Bxe4 {[%clk 0:00:02]}  Bxh4 {[%clk 0:00:27]} 54. Bb1 {[%clk 0:00:02]}  Bf6 {[%clk 0:00:27]} 55. f3 {[%clk 0:00:03]}  h4 {[%clk 0:00:27]} 56. Kf2 {[%clk 0:00:03]}  Kc7 {[%clk 0:00:28]} 57. Kg2 {[%clk 0:00:04]}  Kb6 {[%clk 0:00:29]} 58. Kh3 {[%clk 0:00:04]}  Kc5 {[%clk 0:00:29]} 59. Kg4 {[%clk 0:00:05]}  Kd4 {[%clk 0:00:30]} 60. Kf5 {[%clk 0:00:05]}  Bd8 {[%clk 0:00:28]} 61. f4 {[%clk 0:00:05]}  Ke3 {[%clk 0:00:26]} 62. Kg4 {[%clk 0:00:05]}  h3 {[%clk 0:00:27]} 63. Kxh3 {[%clk 0:00:05]}  Kxf4 {[%clk 0:00:27]} 64. Kg2 {[%clk 0:00:06]}  Ke3 {[%clk 0:00:27]} 65. Kf1 {[%clk 0:00:06]}  Kd2 {[%clk 0:00:28]} 66. Kf2 {[%clk 0:00:06]}  Kc1 {[%clk 0:00:28]} 67. Bd3 {[%clk 0:00:06]}  b1=Q {[%clk 0:00:29]} 68. Bxb1 {[%clk 0:00:07]}  Kxb1 {[%clk 0:00:30]} 69. Ke3 {[%clk 0:00:07]}  Kc2 {[%clk 0:00:31]} 70. Kd4 {[%clk 0:00:08]}  Be7 {[%clk 0:00:31]} 71. Kd5 {[%clk 0:00:09]}  Kd3 {[%clk 0:00:31]} 72. Ke6 {[%clk 0:00:10]}  Kd4 {[%clk 0:00:32]} 73. Kxe7 {[%clk 0:00:11]}  d5 {[%clk 0:00:32]} 74. Kd6 {[%clk 0:00:11]}  Kc4 {[%clk 0:00:33]} 75. Ke5 {[%clk 0:00:11]}  d4 {[%clk 0:00:33]} 76. Ke4 {[%clk 0:00:11]}  d3 {[%clk 0:00:34]} 77. Ke3 {[%clk 0:00:12]}  Kc3 {[%clk 0:00:34]} 78. Kf2 {[%clk 0:00:13]}  Kc2 {[%clk 0:00:35]} 79. Ke1 {[%clk 0:00:14]}  d2+ {[%clk 0:00:36]} 80. Kf1 {[%clk 0:00:13]}  d1=Q+ {[%clk 0:00:36]} 81. Kf2 {[%clk 0:00:14]}  Qd3 {[%clk 0:00:37]} 82. Kg2 {[%clk 0:00:15]}  Kd2 {[%clk 0:00:37]} 83. Kh2 {[%clk 0:00:16]}  Ke2 {[%clk 0:00:38]} 84. Kg2 {[%clk 0:00:16]}  Qg6+ {[%clk 0:00:36]} 85. Kh1 {[%clk 0:00:16]}  Kf2 {[%clk 0:00:37]} 86. Kh2 {[%clk 0:00:17]}  Qh6# {[%clk 0:00:37]} 0-1


[Site "https://www.chess.com"]

[Event "Titled Tuesday Blitz May 9 Late 2023"]
[White "Curtis, John"]
[Black "Ingunza Curro, Andres"]
[WhiteFideId "3200256"]
[BlackFideId "24526371"]
[WhiteElo "2203"]
[BlackElo "2247"]
[Result "1-0"]
[Round "08"]
[TimeControl "180+2"]
[Date "2023.05.09"]
[WhiteClock "0:02:10"]
[BlackClock "0:01:51"]

1. e4 {[%clk 0:03:00]}  e5 {[%clk 0:02:57]} 2. Nf3 {[%clk 0:02:59]}  Nc6 {[%clk 0:02:53]} 3. Bb5 {[%clk 0:02:59]}  a6 {[%clk 0:02:54]} 4. Bxc6 {[%clk 0:02:57]}  dxc6 {[%clk 0:02:53]} 5. O-O {[%clk 0:02:58]}  f6 {[%clk 0:02:51]} 6. d4 {[%clk 0:02:58]}  exd4 {[%clk 0:02:52]} 7. Nxd4 {[%clk 0:02:56]}  c5 {[%clk 0:02:53]} 8. Nb3 {[%clk 0:02:56]}  Qxd1 {[%clk 0:02:51]} 9. Rxd1 {[%clk 0:02:57]}  Bd6 {[%clk 0:02:46]} 10. Nc3 {[%clk 0:02:56]}  Ne7 {[%clk 0:02:41]} 11. Be3 {[%clk 0:02:50]}  b6 {[%clk 0:02:39]} 12. a4 {[%clk 0:02:50]}  a5 {[%clk 0:02:15]} 13. Nb5 {[%clk 0:02:50]}  Be5 {[%clk 0:02:12]} 14. f4 {[%clk 0:02:47]}  c6 {[%clk 0:02:10]} 15. fxe5 {[%clk 0:02:44]}  cxb5 {[%clk 0:02:10]} 16. exf6 {[%clk 0:02:44]}  bxa4 {[%clk 0:02:10]} 17. fxe7 {[%clk 0:02:38]}  Kxe7 {[%clk 0:02:07]} 18. Rxa4 {[%clk 0:02:27]}  Bd7 {[%clk 0:02:04]} 19. Raa1 {[%clk 0:02:24]}  Bc6 {[%clk 0:02:04]} 20. Re1 {[%clk 0:02:21]}  Rad8 {[%clk 0:02:00]} 21. Nxc5 {[%clk 0:02:11]}  bxc5 {[%clk 0:01:59]} 22. Bg5+ {[%clk 0:02:11]}  Ke6 {[%clk 0:01:58]} 23. Bxd8 {[%clk 0:02:11]}  Rxd8 {[%clk 0:01:59]} 24. Rxa5 {[%clk 0:02:11]}  c4 {[%clk 0:01:51]} 25. Rc5 {[%clk 0:02:10]} 1-0


[Site "https://www.chess.com"]

[Event "Titled Tuesday Blitz May 9 Late 2023"]
[White "Dragomirescu, Calin"]
[Black "Torres Dominguez, David"]
[WhiteFideId "1200895"]
[BlackFideId "2220857"]
[WhiteElo "2010"]
[BlackElo "1999"]
[Result "0-1"]
[Round "08"]
[TimeControl "180+2"]
[Date "2023.05.09"]
[WhiteClock "0:00:43"]
[BlackClock "0:00:16"]

1. d4 {[%clk 0:03:00]}  e5 {[%clk 0:02:58]} 2. dxe5 {[%clk 0:02:58]}  d6 {[%clk 0:02:58]} 3. exd6 {[%clk 0:02:58]}  Bxd6 {[%clk 0:02:58]} 4. Nf3 {[%clk 0:02:58]}  Bg4 {[%clk 0:02:55]} 5. h3 {[%clk 0:02:56]}  Bh5 {[%clk 0:02:54]} 6. g4 {[%clk 0:02:52]}  Bg6 {[%clk 0:02:51]} 7. Bg2 {[%clk 0:02:53]}  Nc6 {[%clk 0:02:44]} 8. Nc3 {[%clk 0:02:53]}  Qe7 {[%clk 0:02:36]} 9. O-O {[%clk 0:02:50]}  O-O-O {[%clk 0:02:34]} 10. Nd5 {[%clk 0:02:40]}  Qe6 {[%clk 0:02:32]} 11. c4 {[%clk 0:02:38]}  Nf6 {[%clk 0:02:19]} 12. Ng5 {[%clk 0:02:36]}  Qe8 {[%clk 0:02:15]} 13. Qa4 {[%clk 0:02:29]}  h5 {[%clk 0:02:10]} 14. gxh5 {[%clk 0:02:16]}  Rxh5 {[%clk 0:02:05]} 15. Nxf6 {[%clk 0:02:07]}  gxf6 {[%clk 0:01:56]} 16. Bxc6 {[%clk 0:02:03]}  Qxc6 {[%clk 0:01:43]} 17. Qxc6 {[%clk 0:02:03]}  bxc6 {[%clk 0:01:43]} 18. Nf3 {[%clk 0:02:00]}  Rxh3 {[%clk 0:01:33]} 19. Kg2 {[%clk 0:01:53]}  Rdh8 {[%clk 0:01:16]} 20. Be3 {[%clk 0:01:44]}  Be4 {[%clk 0:01:12]} 21. Rh1 {[%clk 0:01:40]}  Rh2+ {[%clk 0:00:35]} 22. Rxh2 {[%clk 0:01:36]}  Rxh2+ {[%clk 0:00:34]} 23. Kg1 {[%clk 0:01:33]}  Rh8 {[%clk 0:00:31]} 24. c5 {[%clk 0:01:26]}  Be5 {[%clk 0:00:29]} 25. Rd1 {[%clk 0:01:20]}  Bxb2 {[%clk 0:00:27]} 26. Bd4 {[%clk 0:01:08]}  Bxf3 {[%clk 0:00:20]} 27. exf3 {[%clk 0:01:05]}  Rd8 {[%clk 0:00:20]} 28. Bxb2 {[%clk 0:01:02]}  Rxd1+ {[%clk 0:00:21]} 29. Kg2 {[%clk 0:01:02]}  Rd2 {[%clk 0:00:21]} 30. Bxf6 {[%clk 0:01:01]}  Rxa2 {[%clk 0:00:21]} 31. Kg3 {[%clk 0:01:00]}  Kd7 {[%clk 0:00:22]} 32. Kf4 {[%clk 0:00:59]}  Ke6 {[%clk 0:00:22]} 33. Bd4 {[%clk 0:00:58]}  f5 {[%clk 0:00:21]} 34. Ke3 {[%clk 0:00:56]}  Ra3+ {[%clk 0:00:20]} 35. Ke2 {[%clk 0:00:55]}  Rb3 {[%clk 0:00:20]} 36. f4 {[%clk 0:00:54]}  a5 {[%clk 0:00:19]} 37. Kd2 {[%clk 0:00:55]}  a4 {[%clk 0:00:19]} 38. Kc2 {[%clk 0:00:55]}  Rb5 {[%clk 0:00:18]} 39. Bb2 {[%clk 0:00:49]}  Kd5 {[%clk 0:00:18]} 40. Ba3 {[%clk 0:00:49]}  Ke4 {[%clk 0:00:16]} 41. Kc3 {[%clk 0:00:47]}  Kxf4 {[%clk 0:00:16]} 42. Kc4 {[%clk 0:00:43]}  Kf3 {[%clk 0:00:16]} 0-1


[Site "https://www.chess.com"]

[Event "Titled Tuesday Blitz May 9 Late 2023"]
[White "James, Stuart"]
[Black "Celestino, Rafael Teixeira"]
[WhiteFideId "7400489"]
[BlackFideId "2108925"]
[WhiteElo "1950"]
[BlackElo "2309"]
[Result "0-1"]
[Round "08"]
[TimeControl "180+2"]
[Date "2023.05.09"]
[WhiteClock "0:00:44"]
[BlackClock "0:00:16"]

1. e4 {[%clk 0:02:56]}  e5 {[%clk 0:02:58]} 2. Nf3 {[%clk 0:02:54]}  Nc6 {[%clk 0:02:58]} 3. Bb5 {[%clk 0:02:53]}  Nf6 {[%clk 0:02:56]} 4. d3 {[%clk 0:02:53]}  a6 {[%clk 0:02:57]} 5. Ba4 {[%clk 0:02:52]}  b5 {[%clk 0:02:56]} 6. Bb3 {[%clk 0:02:52]}  Bc5 {[%clk 0:02:56]} 7. a4 {[%clk 0:02:51]}  Rb8 {[%clk 0:02:55]} 8. axb5 {[%clk 0:02:50]}  axb5 {[%clk 0:02:56]} 9. Nc3 {[%clk 0:02:49]}  O-O {[%clk 0:02:55]} 10. Nd5 {[%clk 0:02:49]}  Nxd5 {[%clk 0:02:29]} 11. Bxd5 {[%clk 0:02:50]}  Nb4 {[%clk 0:02:05]} 12. Bb3 {[%clk 0:02:45]}  d6 {[%clk 0:02:01]} 13. c3 {[%clk 0:02:38]}  Nc6 {[%clk 0:02:00]} 14. O-O {[%clk 0:02:35]}  Bg4 {[%clk 0:01:59]} 15. h3 {[%clk 0:02:30]}  Be6 {[%clk 0:01:58]} 16. Bc2 {[%clk 0:02:07]}  Qf6 {[%clk 0:01:34]} 17. Bg5 {[%clk 0:02:00]}  Qg6 {[%clk 0:01:34]} 18. d4 {[%clk 0:02:00]}  exd4 {[%clk 0:01:34]} 19. e5 {[%clk 0:01:54]}  Bf5 {[%clk 0:01:31]} 20. Nh4 {[%clk 0:01:52]}  Qxg5 {[%clk 0:01:30]} 21. Nxf5 {[%clk 0:01:49]}  dxc3 {[%clk 0:01:19]} 22. bxc3 {[%clk 0:01:49]}  Nxe5 {[%clk 0:01:17]} 23. h4 {[%clk 0:01:34]}  Qf6 {[%clk 0:00:52]} 24. Qh5 {[%clk 0:01:32]}  Ng6 {[%clk 0:00:44]} 25. Rae1 {[%clk 0:01:15]}  Rfe8 {[%clk 0:00:39]} 26. Qf3 {[%clk 0:01:04]}  Nxh4 {[%clk 0:00:22]} 27. Nxh4 {[%clk 0:00:53]}  Qxh4 {[%clk 0:00:21]} 28. Qc6 {[%clk 0:00:51]}  Rxe1 {[%clk 0:00:18]} 29. Qxc7 {[%clk 0:00:44]}  Rxf1+ {[%clk 0:00:16]} 0-1


[Site "https://www.chess.com"]

[Event "Titled Tuesday Blitz May 9 Late 2023"]
[White "Kostiukov, Alexandr"]
[Black "Castillo Pena, Patricia Evarista"]
[WhiteFideId "14108100"]
[BlackFideId "6412106"]
[WhiteElo "2202"]
[BlackElo "1919"]
[Result "1-0"]
[Round "08"]
[TimeControl "180+2"]
[Date "2023.05.09"]
[WhiteClock "0:01:48"]
[BlackClock "0:00:44"]

1. g3 {[%clk 0:03:00]}  d5 {[%clk 0:02:36]} 2. Bg2 {[%clk 0:03:01]}  c6 {[%clk 0:02:36]} 3. d3 {[%clk 0:03:00]}  e5 {[%clk 0:02:35]} 4. e4 {[%clk 0:03:00]}  dxe4 {[%clk 0:02:34]} 5. dxe4 {[%clk 0:03:00]}  Qxd1+ {[%clk 0:02:33]} 6. Kxd1 {[%clk 0:03:01]}  Nf6 {[%clk 0:02:34]} 7. f3 {[%clk 0:03:02]}  Na6 {[%clk 0:02:31]} 8. Be3 {[%clk 0:03:01]}  Be6 {[%clk 0:02:28]} 9. Nd2 {[%clk 0:03:01]}  O-O-O {[%clk 0:02:28]} 10. Bh3 {[%clk 0:03:01]}  Bxh3 {[%clk 0:02:22]} 11. Nxh3 {[%clk 0:03:02]}  h6 {[%clk 0:02:21]} 12. Ke2 {[%clk 0:02:59]}  Kb8 {[%clk 0:02:21]} 13. Nc4 {[%clk 0:02:57]}  Bc5 {[%clk 0:02:18]} 14. Nxe5 {[%clk 0:02:56]}  Bxe3 {[%clk 0:02:17]} 15. Kxe3 {[%clk 0:02:57]}  Rhf8 {[%clk 0:02:15]} 16. Nd3 {[%clk 0:02:56]}  Nd7 {[%clk 0:02:07]} 17. Rhd1 {[%clk 0:02:53]}  Ndc5 {[%clk 0:02:05]} 18. Nxc5 {[%clk 0:02:52]}  Nxc5 {[%clk 0:02:05]} 19. b3 {[%clk 0:02:48]}  Ne6 {[%clk 0:02:03]} 20. f4 {[%clk 0:02:46]}  Kc7 {[%clk 0:02:00]} 21. Nf2 {[%clk 0:02:40]}  f5 {[%clk 0:01:53]} 22. exf5 {[%clk 0:02:31]}  Rxf5 {[%clk 0:01:52]} 23. Rxd8 {[%clk 0:02:30]}  Kxd8 {[%clk 0:01:49]} 24. Rd1+ {[%clk 0:02:29]}  Kc7 {[%clk 0:01:49]} 25. Ne4 {[%clk 0:02:26]}  Rd5 {[%clk 0:01:33]} 26. Rxd5 {[%clk 0:02:14]}  cxd5 {[%clk 0:01:34]} 27. Nd2 {[%clk 0:02:09]}  Kd6 {[%clk 0:01:32]} 28. Nf3 {[%clk 0:02:09]}  a5 {[%clk 0:01:25]} 29. Nd4 {[%clk 0:02:08]}  Nxd4 {[%clk 0:01:19]} 30. Kxd4 {[%clk 0:02:08]}  b5 {[%clk 0:01:16]} 31. a3 {[%clk 0:01:52]}  b4 {[%clk 0:01:08]} 32. axb4 {[%clk 0:01:51]}  axb4 {[%clk 0:01:08]} 33. f5 {[%clk 0:01:49]}  h5 {[%clk 0:01:02]} 34. h3 {[%clk 0:01:47]}  Kc6 {[%clk 0:00:58]} 35. Ke5 {[%clk 0:01:47]}  Kc5 {[%clk 0:00:56]} 36. g4 {[%clk 0:01:47]}  hxg4 {[%clk 0:00:56]} 37. hxg4 {[%clk 0:01:47]}  d4 {[%clk 0:00:44]} 38. g5 {[%clk 0:01:48]} 1-0


[Site "https://www.chess.com"]

[Event "Titled Tuesday Blitz May 9 Late 2023"]
[White "Horokoskii"]
[Black "Stachanczyk, Jacek"]
[BlackFideId "1116657"]
[WhiteElo "2101"]
[BlackElo "2084"]
[Result "1-0"]
[Round "08"]
[TimeControl "180+2"]
[Date "2023.05.09"]
[WhiteClock "0:00:20"]
[BlackClock "0:00:00"]

1. d4 {[%clk 0:02:52]}  Nf6 {[%clk 0:02:45]} 2. c4 {[%clk 0:02:50]}  g6 {[%clk 0:02:45]} 3. Nc3 {[%clk 0:02:49]}  Bg7 {[%clk 0:02:45]} 4. e4 {[%clk 0:02:48]}  d6 {[%clk 0:02:45]} 5. Be2 {[%clk 0:02:48]}  O-O {[%clk 0:02:45]} 6. Bg5 {[%clk 0:02:48]}  c5 {[%clk 0:02:43]} 7. d5 {[%clk 0:02:48]}  b5 {[%clk 0:02:42]} 8. cxb5 {[%clk 0:02:45]}  a6 {[%clk 0:02:42]} 9. bxa6 {[%clk 0:02:36]}  Bxa6 {[%clk 0:02:43]} 10. Nf3 {[%clk 0:02:36]}  Qb6 {[%clk 0:02:16]} 11. Qd2 {[%clk 0:02:34]}  Nbd7 {[%clk 0:02:13]} 12. O-O {[%clk 0:02:32]}  Rfb8 {[%clk 0:02:09]} 13. Rab1 {[%clk 0:02:15]}  Qb4 {[%clk 0:01:57]} 14. a3 {[%clk 0:01:52]}  Qb3 {[%clk 0:01:28]} 15. Bd1 {[%clk 0:01:41]}  Qb6 {[%clk 0:01:21]} 16. Be2 {[%clk 0:01:41]}  Bxe2 {[%clk 0:00:31]} 17. Qxe2 {[%clk 0:01:42]}  h6 {[%clk 0:00:28]} 18. Be3 {[%clk 0:01:37]}  Qb3 {[%clk 0:00:26]} 19. Qd1 {[%clk 0:01:32]}  Ng4 {[%clk 0:00:24]} 20. Qxb3 {[%clk 0:01:24]}  Rxb3 {[%clk 0:00:25]} 21. Bd2 {[%clk 0:01:24]}  Nge5 {[%clk 0:00:13]} 22. Nxe5 {[%clk 0:01:16]}  Nxe5 {[%clk 0:00:13]} 23. Rfd1 {[%clk 0:00:35]}  Rab8 {[%clk 0:00:12]} 24. a4 {[%clk 0:00:31]}  Nc4 {[%clk 0:00:03]} 25. Bc1 {[%clk 0:00:26]}  Bxc3 {[%clk 0:00:00]} 26. Bxh6 {[%clk 0:00:20]} 1-0


[Site "https://www.chess.com"]

[Event "Titled Tuesday Blitz May 9 Late 2023"]
[White "tandercat"]
[Black "Harish, Neeraj"]
[BlackFideId "30958130"]
[WhiteElo "1997"]
[BlackElo "1879"]
[Result "0-1"]
[Round "08"]
[TimeControl "180+2"]
[Date "2023.05.09"]
[WhiteClock "0:00:00"]
[BlackClock "0:01:23"]

1. d4 {[%clk 0:03:00]}  d5 {[%clk 0:02:59]} 2. c4 {[%clk 0:03:00]}  e6 {[%clk 0:02:59]} 3. Nc3 {[%clk 0:03:01]}  Nf6 {[%clk 0:02:59]} 4. cxd5 {[%clk 0:03:01]}  exd5 {[%clk 0:02:59]} 5. Bg5 {[%clk 0:03:01]}  Be7 {[%clk 0:02:59]} 6. e3 {[%clk 0:03:02]}  O-O {[%clk 0:03:00]} 7. Bd3 {[%clk 0:03:01]}  h6 {[%clk 0:03:00]} 8. Bh4 {[%clk 0:02:59]}  Re8 {[%clk 0:03:01]} 9. Nge2 {[%clk 0:02:57]}  c6 {[%clk 0:02:54]} 10. O-O {[%clk 0:02:53]}  Nbd7 {[%clk 0:02:51]} 11. Qc2 {[%clk 0:02:49]}  a5 {[%clk 0:02:51]} 12. f3 {[%clk 0:02:48]}  b5 {[%clk 0:02:50]} 13. h3 {[%clk 0:02:32]}  Nh5 {[%clk 0:02:45]} 14. Bxe7 {[%clk 0:02:26]}  Qxe7 {[%clk 0:02:45]} 15. e4 {[%clk 0:02:26]}  b4 {[%clk 0:02:42]} 16. Na4 {[%clk 0:02:25]}  Ba6 {[%clk 0:02:26]} 17. e5 {[%clk 0:01:55]}  Bxd3 {[%clk 0:02:24]} 18. Qxd3 {[%clk 0:01:55]}  g6 {[%clk 0:02:25]} 19. Rac1 {[%clk 0:01:49]}  Ng7 {[%clk 0:02:18]} 20. f4 {[%clk 0:01:46]}  Rac8 {[%clk 0:02:17]} 21. Ng3 {[%clk 0:01:36]}  c5 {[%clk 0:02:13]} 22. f5 {[%clk 0:00:57]}  Qg5 {[%clk 0:01:51]} 23. fxg6 {[%clk 0:00:33]}  fxg6 {[%clk 0:01:46]} 24. dxc5 {[%clk 0:00:24]}  Rxe5 {[%clk 0:01:39]} 25. c6 {[%clk 0:00:13]}  Nf6 {[%clk 0:01:34]} 26. Nb6 {[%clk 0:00:06]}  Rce8 {[%clk 0:01:28]} 27. c7 {[%clk 0:00:05]}  Re3 {[%clk 0:01:24]} 28. Qb5 {[%clk 0:00:00]}  Rxg3 {[%clk 0:01:23]} 0-1


[Site "https://www.chess.com"]

[Event "Titled Tuesday Blitz May 9 Late 2023"]
[White "Dias, Joao Batista"]
[Black "Tarnowska, Aleksandra"]
[WhiteFideId "2108240"]
[BlackFideId "1180967"]
[WhiteElo "1907"]
[BlackElo "1776"]
[Result "0-1"]
[Round "08"]
[TimeControl "180+2"]
[Date "2023.05.09"]
[WhiteClock "0:00:23"]
[BlackClock "0:00:03"]

1. e4 {[%clk 0:02:56]}  c5 {[%clk 0:02:59]} 2. f4 {[%clk 0:02:53]}  d5 {[%clk 0:02:57]} 3. exd5 {[%clk 0:02:52]}  Qxd5 {[%clk 0:02:48]} 4. Nc3 {[%clk 0:02:49]}  Qd8 {[%clk 0:02:46]} 5. Nf3 {[%clk 0:02:48]}  Nf6 {[%clk 0:02:40]} 6. Bb5+ {[%clk 0:02:43]}  Bd7 {[%clk 0:02:34]} 7. O-O {[%clk 0:02:42]}  Bxb5 {[%clk 0:02:17]} 8. Nxb5 {[%clk 0:02:32]}  Nc6 {[%clk 0:02:08]} 9. Kh1 {[%clk 0:02:23]}  e6 {[%clk 0:01:43]} 10. c3 {[%clk 0:02:12]}  Be7 {[%clk 0:01:32]} 11. d4 {[%clk 0:02:11]}  cxd4 {[%clk 0:01:23]} 12. Nbxd4 {[%clk 0:02:10]}  O-O {[%clk 0:01:21]} 13. Nxc6 {[%clk 0:02:09]}  bxc6 {[%clk 0:01:20]} 14. Ne5 {[%clk 0:02:09]}  Qc7 {[%clk 0:01:01]} 15. Qf3 {[%clk 0:01:58]}  Rfd8 {[%clk 0:00:58]} 16. Qxc6 {[%clk 0:01:55]}  Qa5 {[%clk 0:00:39]} 17. Be3 {[%clk 0:01:42]}  Nd5 {[%clk 0:00:27]} 18. Bd4 {[%clk 0:01:30]}  Rac8 {[%clk 0:00:20]} 19. Qb7 {[%clk 0:01:29]}  Rc7 {[%clk 0:00:16]} 20. Nc6 {[%clk 0:01:24]}  Rxb7 {[%clk 0:00:10]} 21. Nxa5 {[%clk 0:01:23]}  Rxb2 {[%clk 0:00:10]} 22. Nc4 {[%clk 0:01:21]}  Rc2 {[%clk 0:00:09]} 23. Rf3 {[%clk 0:01:16]}  g6 {[%clk 0:00:04]} 24. Ne5 {[%clk 0:01:13]}  Bf6 {[%clk 0:00:04]} 25. h3 {[%clk 0:01:09]}  Rc8 {[%clk 0:00:04]} 26. Rb1 {[%clk 0:00:55]}  Nxc3 {[%clk 0:00:04]} 27. Rb7 {[%clk 0:00:52]}  Ne2 {[%clk 0:00:03]} 28. Be3 {[%clk 0:00:38]}  Rd8 {[%clk 0:00:02]} 29. Nxf7 {[%clk 0:00:35]}  Rd1+ {[%clk 0:00:02]} 30. Kh2 {[%clk 0:00:35]}  Rxa2 {[%clk 0:00:03]} 31. Nh6+ {[%clk 0:00:31]}  Kf8 {[%clk 0:00:03]} 32. Rf7+ {[%clk 0:00:30]}  Ke8 {[%clk 0:00:03]} 33. Rxf6 {[%clk 0:00:30]}  Raa1 {[%clk 0:00:03]} 34. Rxe6+ {[%clk 0:00:28]}  Kd7 {[%clk 0:00:03]} 35. Re4 {[%clk 0:00:23]}  Rh1# {[%clk 0:00:03]} 0-1


[Site "https://www.chess.com"]

[Event "Titled Tuesday Blitz May 9 Late 2023"]
[White "Maluco_do_Natal_00"]
[Black "Prado, Alexandra"]
[BlackFideId "3301346"]
[WhiteElo "2023"]
[BlackElo "1759"]
[Result "1-0"]
[Round "08"]
[TimeControl "180+2"]
[Date "2023.05.09"]
[WhiteClock "0:00:05"]
[BlackClock "0:00:00"]

1. e4 {[%clk 0:03:00]}  c5 {[%clk 0:02:55]} 2. Nf3 {[%clk 0:03:00]}  g6 {[%clk 0:02:54]} 3. d4 {[%clk 0:03:00]}  cxd4 {[%clk 0:02:54]} 4. Nxd4 {[%clk 0:03:01]}  Nf6 {[%clk 0:02:54]} 5. Nc3 {[%clk 0:03:01]}  Nc6 {[%clk 0:02:53]} 6. Be3 {[%clk 0:03:02]}  Bg7 {[%clk 0:02:53]} 7. Bc4 {[%clk 0:03:02]}  O-O {[%clk 0:02:51]} 8. Bb3 {[%clk 0:03:03]}  d6 {[%clk 0:02:41]} 9. h3 {[%clk 0:03:01]}  Qa5 {[%clk 0:02:13]} 10. O-O {[%clk 0:03:01]}  Bd7 {[%clk 0:02:03]} 11. a3 {[%clk 0:02:38]}  Rac8 {[%clk 0:01:45]} 12. Re1 {[%clk 0:02:05]}  Ne5 {[%clk 0:01:18]} 13. Bd2 {[%clk 0:01:20]}  Nc4 {[%clk 0:01:05]} 14. Bxc4 {[%clk 0:01:13]}  Rxc4 {[%clk 0:01:04]} 15. Nb3 {[%clk 0:00:54]}  Qc7 {[%clk 0:00:48]} 16. Qe2 {[%clk 0:00:44]}  a6 {[%clk 0:00:39]} 17. Rad1 {[%clk 0:00:36]}  b5 {[%clk 0:00:35]} 18. Qd3 {[%clk 0:00:28]}  Rc8 {[%clk 0:00:33]} 19. f3 {[%clk 0:00:16]}  Be6 {[%clk 0:00:26]} 20. Nd4 {[%clk 0:00:15]}  Nd7 {[%clk 0:00:20]} 21. Nxe6 {[%clk 0:00:14]}  fxe6 {[%clk 0:00:21]} 22. Bf4 {[%clk 0:00:10]}  Ne5 {[%clk 0:00:18]} 23. Qe2 {[%clk 0:00:08]}  Nc6 {[%clk 0:00:11]} 24. Kh1 {[%clk 0:00:07]}  Nd4 {[%clk 0:00:10]} 25. Qd3 {[%clk 0:00:07]}  e5 {[%clk 0:00:09]} 26. Bg5 {[%clk 0:00:06]}  Kf7 {[%clk 0:00:08]} 27. Nd5 {[%clk 0:00:06]}  Qd7 {[%clk 0:00:06]} 28. c3 {[%clk 0:00:06]}  Bf6 {[%clk 0:00:06]} 29. Bxf6 {[%clk 0:00:05]}  exf6 {[%clk 0:00:07]} 30. cxd4 {[%clk 0:00:05]}  Rxd4 {[%clk 0:00:07]} 31. Qe2 {[%clk 0:00:05]}  Rdc4 {[%clk 0:00:07]} 32. Rd2 {[%clk 0:00:04]}  Qe6 {[%clk 0:00:06]} 33. Nb6 {[%clk 0:00:04]}  R8c6 {[%clk 0:00:05]} 34. Nxc4 {[%clk 0:00:05]}  Rxc4 {[%clk 0:00:05]} 35. Red1 {[%clk 0:00:05]}  f5 {[%clk 0:00:04]} 36. Rxd6 {[%clk 0:00:05]}  Qe7 {[%clk 0:00:00]} 37. Rd7 {[%clk 0:00:05]} 1-0


[Site "https://www.chess.com"]